[Event "*** SCC Grand Prix: Titled Tuesday Blitz"]
[Site "Chess.com"]
[Date "2020.06.02"]
[Round "6"]
[White "Gandrade2"]
[Black "Forantes"]
[Result "0-1"]
[WhiteElo "2019"]
[BlackElo "2307"]
[TimeControl "180+1"]
[EndTime "11:09:37 PDT"]
[Termination "Forantes won by checkmate"]

1. d4 {[%clk 0:03:00.9]} 1... Nf6 {[%clk 0:02:58]} 2. c4 {[%clk 0:03:00.9]} 2...
g6 {[%clk 0:02:58.1]} 3. Nc3 {[%clk 0:03:01]} 3... d5 {[%clk 0:02:58.5]} 4. cxd5
{[%clk 0:03:00.9]} 4... Nxd5 {[%clk 0:02:58.9]} 5. Bd2 {[%clk 0:03:01.3]} 5...
Bg7 {[%clk 0:02:58.7]} 6. e4 {[%clk 0:03:01.5]} 6... Nb6 {[%clk 0:02:58.9]} 7.
Be3 {[%clk 0:03:01.2]} 7... O-O {[%clk 0:02:59.3]} 8. Nf3 {[%clk 0:03:00.8]}
8... Nc6 {[%clk 0:02:59.6]} 9. Be2 {[%clk 0:02:58.2]} 9... Bg4 {[%clk
0:02:59.4]} 10. e5 {[%clk 0:02:58.2]} 10... Nb4 {[%clk 0:02:39.6]} 11. h3 {[%clk
0:02:54.4]} 11... Be6 {[%clk 0:02:39.5]} 12. Qc1 {[%clk 0:02:39.3]} 12... Nc4
{[%clk 0:02:09.7]} 13. O-O {[%clk 0:02:29.7]} 13... Nxe3 {[%clk 0:02:08.9]} 14.
fxe3 {[%clk 0:02:23.3]} 14... Bh6 {[%clk 0:02:09.2]} 15. a3 {[%clk 0:02:22.7]}
15... Nd5 {[%clk 0:02:06.5]} 16. Nxd5 {[%clk 0:02:20.3]} 16... Bxd5 {[%clk
0:02:07.4]} 17. Qc3 {[%clk 0:02:10.9]} 17... Rc8 {[%clk 0:01:59.7]} 18. b4
{[%clk 0:02:06.2]} 18... c6 {[%clk 0:01:58]} 19. Nd2 {[%clk 0:01:53.3]} 19... f6
{[%clk 0:00:55.8]} 20. exf6 {[%clk 0:01:33.8]} 20... exf6 {[%clk 0:00:54.7]} 21.
Bf3 {[%clk 0:01:33.4]} 21... f5 {[%clk 0:00:54.1]} 22. Rae1 {[%clk 0:01:24.8]}
22... Re8 {[%clk 0:00:48.8]} 23. Nc4 {[%clk 0:01:05]} 23... Qh4 {[%clk
0:00:32.1]} 24. Nd6 {[%clk 0:00:55.6]} 24... Bf8 {[%clk 0:00:16.7]} 25. Nxe8
{[%clk 0:00:54.2]} 25... Rxe8 {[%clk 0:00:17.6]} 26. Bxd5+ {[%clk 0:00:54.5]}
26... cxd5 {[%clk 0:00:18.5]} 27. Qc7 {[%clk 0:00:40.8]} 27... Qf6 {[%clk
0:00:11.5]} 28. Qxb7 {[%clk 0:00:38.3]} 28... Qe6 {[%clk 0:00:10.4]} 29. Qxa7
{[%clk 0:00:34.9]} 29... Bd6 {[%clk 0:00:10.6]} 30. b5 {[%clk 0:00:27.8]} 30...
Bb8 {[%clk 0:00:10.6]} 31. Qa6 {[%clk 0:00:26.4]} 31... Qe4 {[%clk 0:00:09.5]}
32. Qc6 {[%clk 0:00:21.3]} 32... Re6 {[%clk 0:00:08.4]} 33. Qc8+ {[%clk
0:00:20.7]} 33... Re8 {[%clk 0:00:09]} 34. Qc5 {[%clk 0:00:18.8]} 34... Rd8
{[%clk 0:00:07.8]} 35. b6 {[%clk 0:00:17.4]} 35... Qh4 {[%clk 0:00:07.5]} 36. b7
{[%clk 0:00:13.5]} 36... Qg3 {[%clk 0:00:07.5]} 37. Qc7 {[%clk 0:00:05]} 37...
Qxc7 {[%clk 0:00:06.5]} 38. Rc1 {[%clk 0:00:03.1]} 38... Qh2+ {[%clk 0:00:05.8]}
39. Kf2 {[%clk 0:00:03]} 39... Qg3+ {[%clk 0:00:05.7]} 40. Ke2 {[%clk
0:00:03.9]} 40... Re8 {[%clk 0:00:05.6]} 41. Rf2 {[%clk 0:00:04.8]} 41... Qxe3+
{[%clk 0:00:05.3]} 42. Kf1 {[%clk 0:00:05.7]} 42... Qxc1# {[%clk 0:00:05.7]} 0-1

[Event "*** SCC Grand Prix: Titled Tuesday Blitz"]
[Site "Chess.com"]
[Date "2020.06.02"]
[Round "6"]
[White "damayito"]
[Black "Cocaino74"]
[Result "0-1"]
[WhiteElo "1654"]
[BlackElo "2303"]
[TimeControl "180+1"]
[EndTime "11:09:38 PDT"]
[Termination "Cocaino74 won on time"]

1. e4 {[%clk 0:02:34.5]} 1... c6 {[%clk 0:02:59.9]} 2. Nc3 {[%clk 0:02:34]} 2...
g6 {[%clk 0:02:57.9]} 3. d4 {[%clk 0:02:33.6]} 3... Bg7 {[%clk 0:02:58.4]} 4.
Nf3 {[%clk 0:02:22.1]} 4... d5 {[%clk 0:02:58.3]} 5. e5 {[%clk 0:02:18.6]} 5...
h5 {[%clk 0:02:54]} 6. Bd3 {[%clk 0:02:17.3]} 6... Nh6 {[%clk 0:02:52.4]} 7. Be3
{[%clk 0:02:12.1]} 7... Bf5 {[%clk 0:02:51.4]} 8. Qd2 {[%clk 0:02:11.3]} 8...
Na6 {[%clk 0:02:39.1]} 9. O-O-O {[%clk 0:02:10.2]} 9... Bxd3 {[%clk 0:02:35.3]}
10. Qxd3 {[%clk 0:02:09.3]} 10... Nf5 {[%clk 0:02:35.5]} 11. Bg5 {[%clk
0:02:01]} 11... b5 {[%clk 0:02:29.3]} 12. Nh4 {[%clk 0:01:52]} 12... Nxh4 {[%clk
0:02:26.2]} 13. Bxh4 {[%clk 0:01:51.4]} 13... Nb4 {[%clk 0:02:23.7]} 14. Qg3
{[%clk 0:01:41.6]} 14... a5 {[%clk 0:02:13.1]} 15. e6 {[%clk 0:01:40.8]} 15...
Qd6 {[%clk 0:01:53.1]} 16. exf7+ {[%clk 0:01:37]} 16... Kxf7 {[%clk 0:01:53]}
17. Rhe1 {[%clk 0:01:19.6]} 17... Qxg3 {[%clk 0:01:46.8]} 18. Rxe7+ {[%clk
0:01:16.1]} 18... Kf8 {[%clk 0:01:46.3]} 19. fxg3 {[%clk 0:01:13.8]} 19... Bh6+
{[%clk 0:01:40.7]} 20. Kb1 {[%clk 0:01:09.6]} 20... g5 {[%clk 0:01:41.2]} 21.
Re6 {[%clk 0:01:03.4]} 21... Re8 {[%clk 0:01:09.2]} 22. Rf1+ {[%clk 0:00:50.9]}
22... Kg7 {[%clk 0:01:09]} 23. Ref6 {[%clk 0:00:39.6]} 23... Rhf8 {[%clk
0:00:57.7]} 24. Rxf8 {[%clk 0:00:29.1]} 24... Rxf8 {[%clk 0:00:58.6]} 25. Re1
{[%clk 0:00:27.3]} 25... gxh4 {[%clk 0:00:58.7]} 26. gxh4 {[%clk 0:00:26.7]}
26... Bd2 {[%clk 0:00:58.5]} 27. Rd1 {[%clk 0:00:20]} 27... Bxc3 {[%clk
0:00:54.4]} 28. bxc3 {[%clk 0:00:20.9]} 28... Na6 {[%clk 0:00:54.1]} 29. Re1
{[%clk 0:00:19.6]} 29... Kf7 {[%clk 0:00:43.5]} 30. Kb2 {[%clk 0:00:17.1]} 30...
Rg8 {[%clk 0:00:40.5]} 31. g3 {[%clk 0:00:15.9]} 31... Rg6 {[%clk 0:00:39.4]}
32. Re5 {[%clk 0:00:15.6]} 32... Rh6 {[%clk 0:00:33.4]} 33. Rg5 {[%clk 0:00:15]}
33... Rh8 {[%clk 0:00:31.3]} 34. Kb3 {[%clk 0:00:15.1]} 34... Nc7 {[%clk
0:00:20]} 35. a4 {[%clk 0:00:14.7]} 35... Ne6 {[%clk 0:00:20.4]} 36. Rf5+ {[%clk
0:00:14.1]} 36... Ke7 {[%clk 0:00:19.8]} 37. axb5 {[%clk 0:00:12.4]} 37... Rb8
{[%clk 0:00:20.4]} 38. Ka4 {[%clk 0:00:11]} 38... Rxb5 {[%clk 0:00:19.7]} 39.
Rxh5 {[%clk 0:00:10.3]} 39... Rb2 {[%clk 0:00:17.4]} 40. Rh7+ {[%clk 0:00:09.2]}
40... Kd6 {[%clk 0:00:17.1]} 41. h5 {[%clk 0:00:07.1]} 41... Rxc2 {[%clk
0:00:17.3]} 42. h4 {[%clk 0:00:07.2]} 42... Rg2 {[%clk 0:00:17.2]} 43. Kxa5
{[%clk 0:00:02.8]} 43... Rxg3 {[%clk 0:00:17.4]} 44. Rh8 {[%clk 0:00:01.4]}
44... Rxc3 {[%clk 0:00:12.6]} 45. h6 {[%clk 0:00:01.4]} 45... Nxd4 {[%clk
0:00:13.1]} 0-1

[Event "*** SCC Grand Prix: Titled Tuesday Blitz"]
[Site "Chess.com"]
[Date "2020.06.02"]
[Round "6"]
[White "maciek_92"]
[Black "DraG0s3L"]
[Result "1-0"]
[WhiteElo "2792"]
[BlackElo "2511"]
[TimeControl "180+1"]
[EndTime "11:09:39 PDT"]
[Termination "maciek_92 won by checkmate"]

1. e4 {[%clk 0:03:00.9]} 1... e6 {[%clk 0:02:58.9]} 2. d4 {[%clk 0:03:00.5]}
2... d5 {[%clk 0:02:59.6]} 3. Nc3 {[%clk 0:02:57]} 3... Bb4 {[%clk 0:02:59]} 4.
e5 {[%clk 0:02:56.7]} 4... c5 {[%clk 0:02:58.9]} 5. a3 {[%clk 0:02:57.3]} 5...
Bxc3+ {[%clk 0:02:59.2]} 6. bxc3 {[%clk 0:02:58.2]} 6... Qc7 {[%clk 0:03:00]} 7.
Nf3 {[%clk 0:02:42.9]} 7... Ne7 {[%clk 0:03:00]} 8. h4 {[%clk 0:02:42.7]} 8...
Nbc6 {[%clk 0:02:57.4]} 9. h5 {[%clk 0:02:42.6]} 9... h6 {[%clk 0:02:55.4]} 10.
Rh4 {[%clk 0:02:39.6]} 10... Bd7 {[%clk 0:02:52.7]} 11. Rg4 {[%clk 0:02:35.3]}
11... Nf5 {[%clk 0:02:41.4]} 12. Bd3 {[%clk 0:02:28.1]} 12... Nce7 {[%clk
0:02:41.6]} 13. a4 {[%clk 0:02:28]} 13... c4 {[%clk 0:02:41.9]} 14. Be2 {[%clk
0:02:25.8]} 14... g5 {[%clk 0:02:33.1]} 15. hxg6 {[%clk 0:02:04.1]} 15... Nxg6
{[%clk 0:02:31.2]} 16. Ba3 {[%clk 0:01:42]} 16... Bxa4 {[%clk 0:02:22.9]} 17.
Rxg6 {[%clk 0:01:40.4]} 17... fxg6 {[%clk 0:02:22.4]} 18. g4 {[%clk 0:01:41]}
18... Ng7 {[%clk 0:02:13]} 19. Bd6 {[%clk 0:01:39.7]} 19... Qd7 {[%clk
0:02:12.7]} 20. Nh4 {[%clk 0:01:37.4]} 20... Kf7 {[%clk 0:01:44.5]} 21. Bf1
{[%clk 0:01:12.9]} 21... Rhf8 {[%clk 0:01:22.3]} 22. Bxf8 {[%clk 0:00:36.1]}
22... Rxf8 {[%clk 0:01:23.2]} 23. f4 {[%clk 0:00:36.3]} 23... Bc6 {[%clk
0:01:12.1]} 24. Qf3 {[%clk 0:00:29.5]} 24... Qe7 {[%clk 0:01:09.5]} 25. Qg3
{[%clk 0:00:27.6]} 25... g5 {[%clk 0:01:08.2]} 26. Nf3 {[%clk 0:00:25.2]} 26...
Kg8 {[%clk 0:01:06.1]} 27. fxg5 {[%clk 0:00:21.1]} 27... hxg5 {[%clk 0:01:05.1]}
28. Be2 {[%clk 0:00:21.6]} 28... b6 {[%clk 0:00:31.7]} 29. Kd2 {[%clk
0:00:20.7]} 29... Be8 {[%clk 0:00:30.7]} 30. Rh1 {[%clk 0:00:19.2]} 30... Bg6
{[%clk 0:00:30.9]} 31. Rh6 {[%clk 0:00:19.1]} 31... Be4 {[%clk 0:00:12.7]} 32.
Qh3 {[%clk 0:00:11.6]} 32... Rf4 {[%clk 0:00:07.6]} 33. Rh8+ {[%clk 0:00:10.2]}
33... Kf7 {[%clk 0:00:08.1]} 34. Nh2 {[%clk 0:00:03.5]} 34... a5 {[%clk
0:00:07.4]} 35. Nf1 {[%clk 0:00:03.3]} 35... a4 {[%clk 0:00:07.2]} 36. Ng3
{[%clk 0:00:03.3]} 36... a3 {[%clk 0:00:07.6]} 37. Ra8 {[%clk 0:00:03.4]} 37...
b5 {[%clk 0:00:05.8]} 38. Qh8 {[%clk 0:00:02.9]} 38... Kg6 {[%clk 0:00:03.9]}
39. Nh5 {[%clk 0:00:02.9]} 39... Rf2 {[%clk 0:00:03.4]} 40. Rg8 {[%clk
0:00:02.4]} 40... Rxe2+ {[%clk 0:00:02.2]} 41. Kxe2 {[%clk 0:00:02.3]} 41... Qf7
{[%clk 0:00:02.3]} 42. Rxg7+ {[%clk 0:00:02.6]} 42... Qxg7 {[%clk 0:00:02.8]}
43. Qxg7# {[%clk 0:00:03.5]} 1-0

[Event "*** SCC Grand Prix: Titled Tuesday Blitz"]
[Site "Chess.com"]
[Date "2020.06.02"]
[Round "6"]
[White "chenxiaoyuer"]
[Black "antoszu"]
[Result "0-1"]
[WhiteElo "2326"]
[BlackElo "2550"]
[TimeControl "180+1"]
[EndTime "11:09:39 PDT"]
[Termination "antoszu won by checkmate"]

1. e4 {[%clk 0:03:00.9]} 1... c5 {[%clk 0:02:59.2]} 2. Nf3 {[%clk 0:02:59.2]}
2... e6 {[%clk 0:02:59.5]} 3. d4 {[%clk 0:02:58.4]} 3... cxd4 {[%clk 0:03:00.4]}
4. Nxd4 {[%clk 0:02:58.5]} 4... a6 {[%clk 0:03:00.5]} 5. Nc3 {[%clk 0:02:57.8]}
5... Qc7 {[%clk 0:02:59.7]} 6. Be2 {[%clk 0:02:55.1]} 6... Nf6 {[%clk
0:02:58.3]} 7. O-O {[%clk 0:02:50.5]} 7... d6 {[%clk 0:02:57.9]} 8. a4 {[%clk
0:02:47.1]} 8... b6 {[%clk 0:02:55.8]} 9. Be3 {[%clk 0:02:35.7]} 9... Be7 {[%clk
0:02:53]} 10. f4 {[%clk 0:02:31.1]} 10... Bb7 {[%clk 0:02:52]} 11. Bf3 {[%clk
0:02:30.3]} 11... Nbd7 {[%clk 0:02:49]} 12. f5 {[%clk 0:02:15.1]} 12... e5
{[%clk 0:02:38.5]} 13. Nb3 {[%clk 0:02:13.5]} 13... O-O {[%clk 0:02:38.3]} 14.
g4 {[%clk 0:02:11.9]} 14... d5 {[%clk 0:02:20.5]} 15. exd5 {[%clk 0:01:11.3]}
15... e4 {[%clk 0:02:19.4]} 16. Be2 {[%clk 0:00:56.6]} 16... Bd6 {[%clk
0:02:02.4]} 17. Rf2 {[%clk 0:00:45.5]} 17... h6 {[%clk 0:01:45.4]} 18. Qd2
{[%clk 0:00:31]} 18... Ne5 {[%clk 0:01:34]} 19. Bxh6 {[%clk 0:00:23.3]} 19... e3
{[%clk 0:00:48.9]} 20. Qxe3 {[%clk 0:00:18.8]} 20... Nexg4 {[%clk 0:00:49]} 21.
Bxg4 {[%clk 0:00:07.4]} 21... Nxg4 {[%clk 0:00:49.9]} 22. Qd4 {[%clk 0:00:04.4]}
22... Nxh6 {[%clk 0:00:47.6]} 23. Rg2 {[%clk 0:00:03.4]} 23... Be5 {[%clk
0:00:34.7]} 24. Qh4 {[%clk 0:00:03]} 24... Kh8 {[%clk 0:00:30.5]} 25. Rf1 {[%clk
0:00:01.6]} 25... Qd8 {[%clk 0:00:24]} 26. f6 {[%clk 0:00:01.3]} 26... Bxf6
{[%clk 0:00:21.8]} 27. Qh5 {[%clk 0:00:01.4]} 27... Bxc3 {[%clk 0:00:18.9]} 28.
bxc3 {[%clk 0:00:01.4]} 28... Qxd5 {[%clk 0:00:19.4]} 29. Qxd5 {[%clk
0:00:01.2]} 29... Bxd5 {[%clk 0:00:20.3]} 30. Rgf2 {[%clk 0:00:01.5]} 30... Bc4
{[%clk 0:00:15.7]} 31. Re1 {[%clk 0:00:01.5]} 31... b5 {[%clk 0:00:14.5]} 32.
Rd2 {[%clk 0:00:02.4]} 32... bxa4 {[%clk 0:00:14.1]} 33. Nd4 {[%clk 0:00:03.3]}
33... a3 {[%clk 0:00:14.4]} 34. Ra1 {[%clk 0:00:03.1]} 34... a2 {[%clk
0:00:14.8]} 35. Rdd1 {[%clk 0:00:04]} 35... Ng4 {[%clk 0:00:13.8]} 36. Rdc1
{[%clk 0:00:04.9]} 36... Ne3 {[%clk 0:00:13.7]} 37. h3 {[%clk 0:00:05.8]} 37...
Nd5 {[%clk 0:00:13.5]} 38. Kf2 {[%clk 0:00:06.5]} 38... Nxc3 {[%clk 0:00:13.9]}
39. Ke1 {[%clk 0:00:07.2]} 39... Ne4 {[%clk 0:00:13.9]} 40. Kd1 {[%clk
0:00:06.7]} 40... Rad8 {[%clk 0:00:13.1]} 41. c3 {[%clk 0:00:06.8]} 41... Nxc3+
{[%clk 0:00:13.5]} 42. Rxc3 {[%clk 0:00:07]} 42... Rxd4+ {[%clk 0:00:14.2]} 43.
Kc2 {[%clk 0:00:07.9]} 43... Be6 {[%clk 0:00:13.8]} 44. Kb2 {[%clk 0:00:06.9]}
44... Rd2+ {[%clk 0:00:13.5]} 45. Ka3 {[%clk 0:00:06.8]} 45... Rfd8 {[%clk
0:00:12.8]} 46. Rc7 {[%clk 0:00:06.7]} 46... R8d3+ {[%clk 0:00:11.6]} 47. Ka4
{[%clk 0:00:07.6]} 47... Rd1 {[%clk 0:00:11.6]} 48. Ka5 {[%clk 0:00:08.5]} 48...
Rxa1 {[%clk 0:00:11.4]} 49. Kb6 {[%clk 0:00:09.1]} 49... Rb1+ {[%clk 0:00:11.3]}
50. Ka7 {[%clk 0:00:10]} 50... a1=Q {[%clk 0:00:11.5]} 51. Rc8+ {[%clk
0:00:10.4]} 51... Bxc8 {[%clk 0:00:11.2]} 52. Ka8 {[%clk 0:00:10.8]} 52... Qe5
{[%clk 0:00:09.9]} 53. h4 {[%clk 0:00:10.6]} 53... Qb8# {[%clk 0:00:10.8]} 0-1

[Event "*** SCC Grand Prix: Titled Tuesday Blitz"]
[Site "Chess.com"]
[Date "2020.06.02"]
[Round "6"]
[White "TigrVShlyape"]
[Black "Violord"]
[Result "1-0"]
[WhiteElo "2879"]
[BlackElo "2603"]
[TimeControl "180+1"]
[EndTime "11:09:41 PDT"]
[Termination "TigrVShlyape won on time"]

1. d4 {[%clk 0:03:00.9]} 1... Nf6 {[%clk 0:02:57]} 2. Nf3 {[%clk 0:02:59.4]}
2... g6 {[%clk 0:02:56.6]} 3. c3 {[%clk 0:02:58.3]} 3... Bg7 {[%clk 0:02:56.4]}
4. Bf4 {[%clk 0:02:57.8]} 4... O-O {[%clk 0:02:56]} 5. Nbd2 {[%clk 0:02:56.2]}
5... d5 {[%clk 0:02:54]} 6. h3 {[%clk 0:02:54.2]} 6... c5 {[%clk 0:02:49.3]} 7.
e3 {[%clk 0:02:53.6]} 7... Nfd7 {[%clk 0:02:46.1]} 8. Qb3 {[%clk 0:02:49.6]}
8... c4 {[%clk 0:02:38.4]} 9. Qa3 {[%clk 0:02:44.4]} 9... Nc6 {[%clk 0:02:37.6]}
10. Be2 {[%clk 0:02:34]} 10... b5 {[%clk 0:02:26.7]} 11. b3 {[%clk 0:02:29.6]}
11... a5 {[%clk 0:02:18.7]} 12. bxc4 {[%clk 0:02:28.4]} 12... dxc4 {[%clk
0:02:16.6]} 13. Qb2 {[%clk 0:02:27.5]} 13... e5 {[%clk 0:02:06.6]} 14. Bg3
{[%clk 0:01:54.1]} 14... Ba6 {[%clk 0:02:04.8]} 15. a4 {[%clk 0:01:51]} 15... b4
{[%clk 0:02:01.2]} 16. O-O {[%clk 0:01:31.5]} 16... exd4 {[%clk 0:01:57.3]} 17.
exd4 {[%clk 0:01:31]} 17... Nb6 {[%clk 0:01:46.4]} 18. Rfe1 {[%clk 0:01:06.8]}
18... bxc3 {[%clk 0:01:39.3]} 19. Qxc3 {[%clk 0:01:06.3]} 19... Nxd4 {[%clk
0:01:34.8]} 20. Be5 {[%clk 0:00:53.2]} 20... Bxe5 {[%clk 0:01:20.1]} 21. Nxe5
{[%clk 0:00:52.4]} 21... Nxe2+ {[%clk 0:01:10.2]} 22. Rxe2 {[%clk 0:00:51.2]}
22... Nd5 {[%clk 0:01:10.1]} 23. Qd4 {[%clk 0:00:39.3]} 23... Nb4 {[%clk
0:01:00.6]} 24. Qc3 {[%clk 0:00:27.3]} 24... Nd5 {[%clk 0:00:47.6]} 25. Qd4
{[%clk 0:00:26.9]} 25... c3 {[%clk 0:00:40]} 26. Ndc4 {[%clk 0:00:26.4]} 26...
Rc8 {[%clk 0:00:22.4]} 27. Rc2 {[%clk 0:00:15.9]} 27... f6 {[%clk 0:00:16.8]}
28. Re1 {[%clk 0:00:05.7]} 28... fxe5 {[%clk 0:00:16.1]} 29. Nxe5 {[%clk
0:00:05.3]} 29... Nf6 {[%clk 0:00:15.6]} 30. Qe3 {[%clk 0:00:04.4]} 30... Qd5
{[%clk 0:00:15.2]} 31. Rxc3 {[%clk 0:00:04.1]} 31... Rce8 {[%clk 0:00:14.5]} 32.
f3 {[%clk 0:00:03.9]} 32... Bb7 {[%clk 0:00:14]} 33. Rc5 {[%clk 0:00:03.6]}
33... Qd6 {[%clk 0:00:13.6]} 34. Rxa5 {[%clk 0:00:03.7]} 34... Qe6 {[%clk
0:00:13]} 35. Rb5 {[%clk 0:00:03.2]} 35... Bc8 {[%clk 0:00:10.1]} 36. Qd4 {[%clk
0:00:02.7]} 36... Qf5 {[%clk 0:00:06.6]} 37. f4 {[%clk 0:00:02.4]} 37... Qe6
{[%clk 0:00:06.2]} 38. Kh2 {[%clk 0:00:01.9]} 38... Qe7 {[%clk 0:00:04.7]} 39.
a5 {[%clk 0:00:02.2]} 39... Ba6 {[%clk 0:00:02.5]} 40. Rb6 {[%clk 0:00:02.4]}
40... Rd8 {[%clk 0:00:02.3]} 41. Qa4 {[%clk 0:00:01.2]} 41... Bb7 {[%clk
0:00:01.1]} 42. Qb3+ {[%clk 0:00:02.1]} 1-0

[Event "*** SCC Grand Prix: Titled Tuesday Blitz"]
[Site "Chess.com"]
[Date "2020.06.02"]
[Round "6"]
[White "davigator"]
[Black "Balla_Tamas"]
[Result "1/2-1/2"]
[WhiteElo "2318"]
[BlackElo "2474"]
[TimeControl "180+1"]
[EndTime "11:09:42 PDT"]
[Termination "Game drawn by repetition"]

1. e4 {[%clk 0:03:00.9]} 1... c5 {[%clk 0:02:58.5]} 2. Nf3 {[%clk 0:03:00.3]}
2... e6 {[%clk 0:02:58.8]} 3. d4 {[%clk 0:03:00.6]} 3... cxd4 {[%clk 0:02:59.1]}
4. Nxd4 {[%clk 0:03:01.1]} 4... a6 {[%clk 0:02:59.7]} 5. Bd3 {[%clk 0:03:00.2]}
5... Bc5 {[%clk 0:02:58.3]} 6. Nb3 {[%clk 0:02:59.3]} 6... Be7 {[%clk
0:02:58.2]} 7. c4 {[%clk 0:02:57.9]} 7... d6 {[%clk 0:02:57.9]} 8. Nc3 {[%clk
0:02:57.9]} 8... Nf6 {[%clk 0:02:58.3]} 9. Be3 {[%clk 0:02:57.2]} 9... Nbd7
{[%clk 0:02:57.4]} 10. Qe2 {[%clk 0:02:56]} 10... b6 {[%clk 0:02:57.3]} 11. O-O
{[%clk 0:02:54.9]} 11... Bb7 {[%clk 0:02:57.1]} 12. Rac1 {[%clk 0:02:54.2]}
12... O-O {[%clk 0:02:56.6]} 13. Rfd1 {[%clk 0:02:53.7]} 13... Qc7 {[%clk
0:02:55.2]} 14. f3 {[%clk 0:02:53.1]} 14... Ne5 {[%clk 0:02:52.2]} 15. Na4
{[%clk 0:02:44.5]} 15... Nxd3 {[%clk 0:02:46]} 16. Rxd3 {[%clk 0:02:42.8]} 16...
Nd7 {[%clk 0:02:45.3]} 17. Qf2 {[%clk 0:02:42.3]} 17... Nc5 {[%clk 0:02:44.2]}
18. Naxc5 {[%clk 0:02:42.2]} 18... dxc5 {[%clk 0:02:41.5]} 19. Rcd1 {[%clk
0:02:40.8]} 19... Rad8 {[%clk 0:02:40.2]} 20. Nc1 {[%clk 0:02:27.3]} 20... Rxd3
{[%clk 0:02:38.8]} 21. Rxd3 {[%clk 0:02:26.8]} 21... Rd8 {[%clk 0:02:38.6]} 22.
Qd2 {[%clk 0:02:26.6]} 22... Rxd3 {[%clk 0:02:37.9]} 23. Qxd3 {[%clk 0:02:26.2]}
23... Bd6 {[%clk 0:02:38]} 24. h3 {[%clk 0:02:25]} 24... f6 {[%clk 0:02:34.3]}
25. Ne2 {[%clk 0:02:24.4]} 25... Bc6 {[%clk 0:02:30.9]} 26. Nc3 {[%clk
0:02:23.8]} 26... Be5 {[%clk 0:02:26.7]} 27. Qd2 {[%clk 0:02:22.6]} 27... Kf7
{[%clk 0:02:23.9]} 28. b3 {[%clk 0:02:22]} 28... Qd6 {[%clk 0:02:20.7]} 29. Ne2
{[%clk 0:02:18.9]} 29... Qxd2 {[%clk 0:02:15.4]} 30. Bxd2 {[%clk 0:02:18.3]}
30... f5 {[%clk 0:02:15.9]} 31. exf5 {[%clk 0:02:17.5]} 31... exf5 {[%clk
0:02:16.5]} 32. Kf2 {[%clk 0:02:17.6]} 32... b5 {[%clk 0:02:13.4]} 33. Bf4
{[%clk 0:02:15.1]} 33... Bf6 {[%clk 0:02:03.7]} 34. Bd6 {[%clk 0:02:08.4]} 34...
bxc4 {[%clk 0:01:57.5]} 35. bxc4 {[%clk 0:02:06.3]} 35... Be7 {[%clk 0:01:53.3]}
36. Bxe7 {[%clk 0:02:05.5]} 36... Kxe7 {[%clk 0:01:53.5]} 37. Nf4 {[%clk
0:02:05.3]} 37... Kd6 {[%clk 0:01:51.3]} 38. h4 {[%clk 0:02:03.7]} 38... Be8
{[%clk 0:01:46.8]} 39. Ke3 {[%clk 0:02:02.5]} 39... Bf7 {[%clk 0:01:45.7]} 40.
Kd3 {[%clk 0:02:02.5]} 40... g6 {[%clk 0:01:45.6]} 41. a3 {[%clk 0:02:01.8]}
41... h6 {[%clk 0:01:44.8]} 42. Ne2 {[%clk 0:01:59.2]} 42... g5 {[%clk
0:01:42.8]} 43. hxg5 {[%clk 0:01:58.1]} 43... hxg5 {[%clk 0:01:43.1]} 44. f4
{[%clk 0:01:58.6]} 44... g4 {[%clk 0:01:38.1]} 45. g3 {[%clk 0:01:55.6]} 45...
Be6 {[%clk 0:01:35.1]} 46. Nc3 {[%clk 0:01:54.8]} 46... Bf7 {[%clk 0:01:34.6]}
47. Ne2 {[%clk 0:01:54]} 47... Be6 {[%clk 0:01:34.3]} 48. Nc3 {[%clk 0:01:49.3]}
48... Bf7 {[%clk 0:01:34]} 49. Nd1 {[%clk 0:01:49.5]} 49... Be6 {[%clk
0:01:33.3]} 50. Ne3 {[%clk 0:01:49.5]} 50... Kc6 {[%clk 0:01:32.2]} 51. Kc3
{[%clk 0:01:48.6]} 51... Kb6 {[%clk 0:01:26.3]} 52. Kb3 {[%clk 0:01:48]} 52...
Kc6 {[%clk 0:01:11.2]} 53. Ka4 {[%clk 0:01:46]} 53... Kb6 {[%clk 0:01:10.9]} 54.
Kb3 {[%clk 0:01:44.6]} 54... Kc6 {[%clk 0:01:10.3]} 55. Kc3 {[%clk 0:01:42]}
55... Kd6 {[%clk 0:01:09]} 56. Nc2 {[%clk 0:01:33.6]} 56... Kc6 {[%clk
0:01:06.5]} 57. Na1 {[%clk 0:01:33.2]} 57... Kb6 {[%clk 0:01:05.6]} 58. Nb3
{[%clk 0:01:32.9]} 58... Bd7 {[%clk 0:01:04]} 59. Nc1 {[%clk 0:01:27]} 59... Ka5
{[%clk 0:00:57.4]} 60. Nd3 {[%clk 0:01:20]} 60... Kb6 {[%clk 0:00:56.7]} 61. Ne5
{[%clk 0:01:19.2]} 61... Be6 {[%clk 0:00:56.3]} 62. Kb3 {[%clk 0:01:17.5]} 62...
Bc8 {[%clk 0:00:54.7]} 63. Nf7 {[%clk 0:01:15.3]} 63... Be6 {[%clk 0:00:52.3]}
64. Ne5 {[%clk 0:01:12]} 64... Bc8 {[%clk 0:00:51.5]} 65. Nd3 {[%clk 0:01:08.4]}
65... Be6 {[%clk 0:00:50.7]} 66. Kc3 {[%clk 0:01:03.7]} 66... Bc8 {[%clk
0:00:49.8]} 67. Nb2 {[%clk 0:00:56.9]} 67... Be6 {[%clk 0:00:49]} 68. Nd3 {[%clk
0:00:56.3]} 68... Bd7 {[%clk 0:00:46.3]} 69. Nb2 {[%clk 0:00:54]} 69... Be6
{[%clk 0:00:45.7]} 70. Na4+ {[%clk 0:00:53.5]} 70... Kc6 {[%clk 0:00:45.5]} 71.
Nb2 {[%clk 0:00:53.4]} 71... Bd7 {[%clk 0:00:45]} 72. Kb3 {[%clk 0:00:53.1]}
72... Be6 {[%clk 0:00:44.3]} 73. Ka4 {[%clk 0:00:52.7]} 73... Kb6 {[%clk
0:00:44.1]} 74. Kb3 {[%clk 0:00:52.7]} 74... Bd7 {[%clk 0:00:45]} 75. Kc3 {[%clk
0:00:52.3]} 75... Kc6 {[%clk 0:00:44.4]} 76. Kb3 {[%clk 0:00:52.3]} 76... Be6
{[%clk 0:00:44]} 77. Ka4 {[%clk 0:00:51.4]} 77... Kb6 {[%clk 0:00:43.6]} 78. Kb3
{[%clk 0:00:51]} 78... Bd7 {[%clk 0:00:44.5]} 79. Kc3 {[%clk 0:00:50.5]} 1/2-1/2